[Event "FIDE Open World Rapid 2024"]
[Site "New York"]
[Date "2024.12.27"]
[Round "7.26"]
[White "Bortnyk, Olexandr"]
[Black "Corrales Jimenez, Fidel"]
[Result "1-0"]
[ECO "C47"]
[WhiteElo "2603"]
[BlackElo "2555"]
[Annotator "ChessBase"]
[PlyCount "93"]
[EventDate "2024.12.14"]
[EventType "swiss"]
[EventCountry "USA"]
[SourceTitle "playchess.com"]
[Source "ChessBase"]
[SourceQuality "1"]
[TimeControl "900+10"]

1. e4 {[%emt 0:00:03]} e5 {[%emt 0:00:47]} 2. Nf3 {[%emt 0:00:02]} Nf6 {[%emt 0:00:02]} 3. Nc3 {[%emt 0:00:03]} Nc6 {[%emt 0:00:05]} 4. Nd5 {[%emt 0:00:02]} d6 {[%emt 0:01:05]} 5. d4 {[%emt 0:00:04]} Be7 {[%emt 0:01:56]} 6. Bb5 {[%emt 0:01:03]} O-O {[%emt 0:01:34]} 7. Bxc6 {[%emt 0:00:51]} bxc6 {[%emt 0:00:03]} 8. Nxf6+ {[%emt 0:00:02]} Bxf6 {[%emt 0:00:06]} 9. dxe5 {[%emt 0:00:01]} Bxe5 {[%emt 0:00:09]} 10. Nxe5 {[%emt 0:00:18]} dxe5 {[%emt 0:00:04]} 11. O-O {[%emt 0:00:27]} Qh4 {[%emt 0:00:25]} 12. Qf3 {[%emt 0:01:27]} Rd8 {[%emt 0:00:37]} 13. Re1 {[%emt 0:00:55]} Rd6 {[%emt 0:00:52]} 14. Qg3 {[%emt 0:00:37]} Qh5 {[%emt 0:01:10]} 15. Qg5 {[%emt 0:00:29]} Qxg5 {[%emt 0:03:37]} 16. Bxg5 {[%emt 0:00:02]} c5 {[%emt 0:00:08]} 17. Be7 {[%emt 0:02:27]} Rc6 {[%emt 0:00:02]} 18. Re3 {[%emt 0:00:01]} Be6 {[%emt 0:00:06]} 19. Rc3 {[%emt 0:00:02]} c4 {[%emt 0:00:04]} 20. Rd1 {[%emt 0:00:01]} f6 {[%emt 0:00:14]} 21. Ba3 {[%emt 0:00:19]} Kf7 {[%emt 0:00:03]} 22. h4 {[%emt 0:00:23]} h5 {[%emt 0:00:09]} 23. Kf1 {[%emt 0:00:13]} Rb8 {[%emt 0:00:35]} 24. Ke2 {[%emt 0:00:14]} Bg4+ {[%emt 0:00:17]} 25. f3 {[%emt 0:00:01]} Be6 {[%emt 0:00:02]} 26. Kf2 {[%emt 0:00:25]} Ke8 {[%emt 0:00:24]} 27. g3 {[%emt 0:00:24]} Kf7 {[%emt 0:00:02]} 28. f4 {[%emt 0:00:13]} exf4 {[%emt 0:00:52]} 29. gxf4 {[%emt 0:00:02]} g6 {[%emt 0:00:02]} 30. Rd4 {[%emt 0:00:27]} f5 {[%emt 0:01:55]} 31. exf5 {[%emt 0:01:28]} gxf5 {[%emt 0:00:03]} 32. Rg3 {[%emt 0:00:02]} c3 {[%emt 0:00:28]} 33. b3 {[%emt 0:00:09]} Ra6 {[%emt 0:00:02]} 34. Bc1 {[%emt 0:00:55]} Rxa2 {[%emt 0:00:09]} 35. Rxc3 {[%emt 0:00:01]} Rxb3 {[%emt 0:00:14]} 36. Rxc7+ {[%emt 0:00:03]} Ke8 {[%emt 0:00:02]} 37. Be3 {[%emt 0:03:23]} Rb5 {[%emt 0:01:56]} 38. Rd6 {[%emt 0:00:27]} Bb3 {[%emt 0:00:26]} 39. Rdc6 {[%emt 0:00:03]} Rd5 {[%emt 0:00:21]} 40. Kg3 {[%emt 0:00:40]} Ba4 {[%emt 0:00:13]} 41. Re6+ {[%emt 0:00:01]} Kd8 {[%emt 0:00:02]} 42. Rxa7 {[%emt 0:00:06]} Bd7 {[%emt 0:00:21]} 43. Bb6+ {[%emt 0:00:19]} Kc8 {[%emt 0:00:01]} 44. Rc7+ {[%emt 0:00:01]} Kb8 {[%emt 0:00:02]} 45. Rh6 {[%emt 0:00:39]} Be8 {[%emt 0:00:37]} 46. Rh8 {[%emt 0:00:14]} Rd8 {[%emt 0:00:04]} 47. Rc3 {[%emt 0:00:16]} 1-0

[Event "FIDE Open World Rapid 2024"]
[Site "New York"]
[Date "2024.12.27"]
[Round "7.27"]
[White "Papasimakopoulos, Alexandros"]
[Black "Hovhannisyan, Robert"]
[Result "0-1"]
[ECO "D35"]
[WhiteElo "2379"]
[BlackElo "2626"]
[Annotator "ChessBase"]
[PlyCount "182"]
[EventDate "2024.12.14"]
[EventType "swiss"]
[EventCountry "USA"]
[SourceTitle "playchess.com"]
[Source "ChessBase"]
[SourceQuality "1"]
[TimeControl "900+10"]

1. d4 {[%emt 0:00:03]} Nf6 {[%emt 0:00:02]} 2. c4 {[%emt 0:00:01]} e6 {[%emt 0:00:01]} 3. Nc3 {[%emt 0:00:02]} d5 {[%emt 0:00:18]} 4. cxd5 {[%emt 0:00:03]} exd5 {[%emt 0:00:02]} 5. Bg5 {[%emt 0:00:02]} c6 {[%emt 0:00:06]} 6. e3 {[%emt 0:00:02]} Bf5 {[%emt 0:00:04]} 7. Qf3 {[%emt 0:00:02]} Bg6 {[%emt 0:00:02]} 8. Bxf6 {[%emt 0:00:02]} Qxf6 {[%emt 0:00:01]} 9. Qxf6 {[%emt 0:00:01]} gxf6 {[%emt 0:00:02]} 10. Kd2 {[%emt 0:00:27]} Nd7 {[%emt 0:00:08]} 11. Nf3 {[%emt 0:00:16]} Nb6 {[%emt 0:00:24]} 12. Bd3 {[%emt 0:00:14]} Nc4+ {[%emt 0:00:51]} 13. Bxc4 {[%emt 0:00:06]} dxc4 {[%emt 0:00:02]} 14. e4 {[%emt 0:00:45]} O-O-O {[%emt 0:00:38]} 15. g4 {[%emt 0:00:18]} Bb4 {[%emt 0:02:22]} 16. Ke3 {[%emt 0:00:02]} Rhe8 {[%emt 0:00:32]} 17. Nd2 {[%emt 0:00:02]} f5 {[%emt 0:01:08]} 18. gxf5 {[%emt 0:00:01]} Bxf5 {[%emt 0:00:02]} 19. f3 {[%emt 0:00:06]} Be6 {[%emt 0:00:12]} 20. Rad1 {[%emt 0:02:04]} f5 {[%emt 0:00:42]} 21. Rhg1 {[%emt 0:02:50]} Ba5 {[%emt 0:02:01]} 22. exf5 {[%emt 0:01:46]} Bxf5+ {[%emt 0:00:17]} 23. Nde4 {[%emt 0:00:04]} Bc7 {[%emt 0:01:53]} 24. h4 {[%emt 0:00:29]} Rd7 {[%emt 0:00:31]} 25. Rg2 {[%emt 0:00:57]} b5 {[%emt 0:01:22]} 26. a3 {[%emt 0:00:12]} Bb6 {[%emt 0:00:35]} 27. Rg5 {[%emt 0:00:33]} Rf7 {[%emt 0:00:16]} 28. Rdg1 {[%emt 0:00:52]} Rd8 {[%emt 0:00:15]} 29. Ne2 {[%emt 0:00:03]} Bxe4 {[%emt 0:01:44]} 30. fxe4 {[%emt 0:00:02]} Rfd7 {[%emt 0:00:02]} 31. Rd1 {[%emt 0:00:19]} Kb7 {[%emt 0:00:03]} 32. h5 {[%emt 0:00:56]} a5 {[%emt 0:00:14]} 33. h6 {[%emt 0:00:01]} Rc7 {[%emt 0:00:52]} 34. Rg7 {[%emt 0:00:03]} Rd6 {[%emt 0:00:05]} 35. Rh1 {[%emt 0:00:36]} b4 {[%emt 0:00:32]} 36. a4 {[%emt 0:00:56]} Ka6 {[%emt 0:00:21]} 37. e5 {[%emt 0:01:47]} Rxh6 {[%emt 0:00:08]} 38. Rxh6 {[%emt 0:00:54]} Rxg7 {[%emt 0:00:02]} 39. Rxc6 {[%emt 0:00:01]} c3 {[%emt 0:00:03]} 40. bxc3 {[%emt 0:00:09]} b3 {[%emt 0:00:15]} 41. Rh6 {[%emt 0:00:10]} Rg1 {[%emt 0:00:24]} 42. c4 {[%emt 0:01:48]} b2 {[%emt 0:00:10]} 43. c5 {[%emt 0:00:02]} b1=Q {[%emt 0:00:30]} 44. Rxb6+ {[%emt 0:00:02]} Qxb6 {[%emt 0:00:03]} 45. cxb6 {[%emt 0:00:01]} Rg8 {[%emt 0:00:49]} 46. Nf4 {[%emt 0:00:19]} Kxb6 {[%emt 0:00:03]} 47. Nd5+ {[%emt 0:00:19]} Kb7 {[%emt 0:00:13]} 48. Nf6 {[%emt 0:00:03]} Rg1 {[%emt 0:00:47]} 49. Nxh7 {[%emt 0:00:07]} Ra1 {[%emt 0:00:07]} 50. Nf6 {[%emt 0:00:05]} Ra3+ {[%emt 0:00:47]} 51. Ke4 {[%emt 0:01:27]} Rxa4 {[%emt 0:00:09]} 52. e6 {[%emt 0:00:02]} Ra1 {[%emt 0:00:04]} 53. Ke5 {[%emt 0:00:53]} Re1+ {[%emt 0:00:16]} 54. Kd6 {[%emt 0:00:30]} a4 {[%emt 0:00:02]} 55. Nd5 {[%emt 0:00:09]} a3 {[%emt 0:00:20]} 56. Nb4 {[%emt 0:00:02]} Re4 {[%emt 0:00:17]} 57. Nc2 {[%emt 0:00:18]} a2 {[%emt 0:00:05]} 58. d5 {[%emt 0:00:10]} Re2 {[%emt 0:00:15]} 59. Na1 {[%emt 0:00:01]} Re1 {[%emt 0:00:11]} 60. e7 {[%emt 0:00:01]} Kc8 {[%emt 0:00:15]} 61. Nc2 {[%emt 0:00:07]} Re4 {[%emt 0:00:06]} 62. Na1 {[%emt 0:00:02]} Re3 {[%emt 0:00:03]} 63. Nc2 {[%emt 0:00:01]} Re2 {[%emt 0:00:01]} 64. Na1 {[%emt 0:00:01]} Re4 {[%emt 0:00:06]} 65. Nb3 {[%emt 0:00:07]} Re1 {[%emt 0:00:09]} 66. Na1 {[%emt 0:00:03]} Kb7 {[%emt 0:00:14]} 67. Kd7 {[%emt 0:00:07]} Rxa1 {[%emt 0:00:06]} 68. e8=Q {[%emt 0:00:08]} Rc1 {[%emt 0:00:01]} 69. d6 {[%emt 0:01:14]} a1=Q {[%emt 0:00:05]} 70. Qe4+ {[%emt 0:00:01]} Kb6 {[%emt 0:00:10]} 71. Qe3+ {[%emt 0:00:13]} Kb5 {[%emt 0:00:28]} 72. Qb3+ {[%emt 0:00:14]} Ka5 {[%emt 0:00:15]} 73. Qd5+ {[%emt 0:00:03]} Kb6 {[%emt 0:00:02]} 74. Qb3+ {[%emt 0:00:02]} Kc5 {[%emt 0:00:27]} 75. Qe3+ {[%emt 0:00:07]} Kb4 {[%emt 0:00:15]} 76. Qb6+ {[%emt 0:00:06]} Kc4 {[%emt 0:00:02]} 77. Qc6+ {[%emt 0:00:20]} Kd4 {[%emt 0:00:01]} 78. Qb6+ {[%emt 0:00:01]} Ke4 {[%emt 0:00:15]} 79. Qb4+ {[%emt 0:00:07]} Kf5 {[%emt 0:00:07]} 80. Qb5+ {[%emt 0:00:14]} Kf6 {[%emt 0:00:03]} 81. Qb7 {[%emt 0:00:31]} Qa4+ {[%emt 0:00:11]} 82. Kd8 {[%emt 0:00:02]} Qa5+ {[%emt 0:00:11]} 83. Kd7 {[%emt 0:00:01]} Qf5+ {[%emt 0:00:16]} 84. Kd8 {[%emt 0:00:08]} Qa5+ {[%emt 0:00:16]} 85. Kd7 {[%emt 0:00:01]} Rc3 {[%emt 0:00:09]} 86. Qb8 {[%emt 0:00:38]} Qf5+ {[%emt 0:00:10]} 87. Kd8 {[%emt 0:00:01]} Qg5 {[%emt 0:00:05]} 88. Qc7 {[%emt 0:00:18]} Rxc7 {[%emt 0:00:20]} 89. dxc7 {[%emt 0:00:05]} Ke6+ {[%emt 0:00:03]} 90. Kc8 {[%emt 0:00:04]} Qb5 {[%emt 0:00:02]} 91. Kd8 {[%emt 0:00:00]} Qd7# {[%emt 0:00:02]} 0-1

[Event "FIDE Open World Rapid 2024"]
[Site "New York"]
[Date "2024.12.27"]
[Round "7.28"]
[White "Liang, Awonder"]
[Black "Svane, Rasmus"]
[Result "1/2-1/2"]
[ECO "A00"]
[WhiteElo "2687"]
[BlackElo "2628"]
[Annotator "ChessBase"]
[PlyCount "106"]
[EventDate "2024.12.14"]
[EventType "swiss"]
[EventCountry "USA"]
[SourceTitle "playchess.com"]
[Source "ChessBase"]
[SourceQuality "1"]
[TimeControl "900+10"]

1. g3 {[%emt 0:00:01]} d5 {[%emt 0:00:07]} 2. Bg2 {[%emt 0:00:01]} e5 {[%emt 0:00:22]} 3. d3 {[%emt 0:00:01]} Nf6 {[%emt 0:00:03]} 4. Nf3 {[%emt 0:00:02]} Bd6 {[%emt 0:00:03]} 5. O-O {[%emt 0:00:02]} O-O {[%emt 0:00:11]} 6. Nc3 {[%emt 0:00:02]} h6 {[%emt 0:01:20]} 7. e4 {[%emt 0:00:04]} c6 {[%emt 0:00:02]} 8. Nh4 {[%emt 0:00:13]} Bg4 {[%emt 0:00:45]} 9. Qe1 {[%emt 0:00:01]} dxe4 {[%emt 0:01:17]} 10. dxe4 {[%emt 0:00:09]} Be6 {[%emt 0:00:54]} 11. Kh1 {[%emt 0:00:01]} Nbd7 {[%emt 0:02:02]} 12. f4 {[%emt 0:00:37]} Bc4 {[%emt 0:01:02]} 13. Rf3 {[%emt 0:00:05]} Re8 {[%emt 0:00:03]} 14. f5 {[%emt 0:00:14]} Be7 {[%emt 0:00:26]} 15. Bd2 {[%emt 0:01:34]} Qc7 {[%emt 0:00:28]} 16. g4 {[%emt 0:02:32]} Nh7 {[%emt 0:00:30]} 17. Bf1 {[%emt 0:00:03]} Nb6 {[%emt 0:01:58]} 18. b3 {[%emt 0:01:07]} Bxf1 {[%emt 0:00:39]} 19. Rxf1 {[%emt 0:00:01]} Rad8 {[%emt 0:00:06]} 20. Nf3 {[%emt 0:00:01]} Rd7 {[%emt 0:03:24]} 21. h4 {[%emt 0:00:13]} Qd8 {[%emt 0:00:29]} 22. Be3 {[%emt 0:00:10]} f6 {[%emt 0:00:31]} 23. Rg1 {[%emt 0:00:13]} Nc8 {[%emt 0:00:23]} 24. Nd1 {[%emt 0:03:36]} Nd6 {[%emt 0:00:14]} 25. Nf2 {[%emt 0:00:01]} Nf7 {[%emt 0:00:04]} 26. Qc3 {[%emt 0:00:03]} Qc7 {[%emt 0:00:35]} 27. Rg2 {[%emt 0:00:04]} c5 {[%emt 0:00:19]} 28. Qc4 {[%emt 0:00:15]} Qc6 {[%emt 0:00:08]} 29. a4 {[%emt 0:00:02]} Kf8 {[%emt 0:00:20]} 30. Rag1 {[%emt 0:04:25]} Nd6 {[%emt 0:00:33]} 31. Qxc5 {[%emt 0:00:07]} Nxe4 {[%emt 0:00:41]} 32. Qxc6 {[%emt 0:00:01]} Nxf2+ {[%emt 0:00:01]} 33. Rxf2 {[%emt 0:00:01]} bxc6 {[%emt 0:00:01]} 34. Rd2 {[%emt 0:00:01]} Rc7 {[%emt 0:00:24]} 35. Rgd1 {[%emt 0:00:02]} Rec8 {[%emt 0:00:07]} 36. Rd7 {[%emt 0:01:37]} Ke8 {[%emt 0:00:01]} 37. Rxc7 {[%emt 0:00:03]} Rxc7 {[%emt 0:00:01]} 38. Nd2 {[%emt 0:00:02]} Nf8 {[%emt 0:00:33]} 39. Ne4 {[%emt 0:00:01]} Nd7 {[%emt 0:00:08]} 40. Kg2 {[%emt 0:00:02]} c5 {[%emt 0:00:12]} 41. Kf3 {[%emt 0:00:03]} c4 {[%emt 0:00:12]} 42. Rd5 {[%emt 0:00:04]} cxb3 {[%emt 0:00:03]} 43. cxb3 {[%emt 0:00:01]} Bb4 {[%emt 0:00:21]} 44. Nd6+ {[%emt 0:01:52]} Bxd6 {[%emt 0:00:08]} 45. Rxd6 {[%emt 0:00:01]} Nc5 {[%emt 0:00:08]} 46. Bxc5 {[%emt 0:00:21]} Rxc5 {[%emt 0:00:01]} 47. Ra6 {[%emt 0:00:01]} Rc3+ {[%emt 0:00:19]} 48. Ke4 {[%emt 0:00:22]} Rxb3 {[%emt 0:00:01]} 49. Rxa7 {[%emt 0:00:01]} Rb4+ {[%emt 0:00:01]} 50. Kd5 {[%emt 0:00:46]} e4 {[%emt 0:00:22]} 51. Ra8+ {[%emt 0:00:39]} Ke7 {[%emt 0:00:15]} 52. Ra7+ {[%emt 0:00:02]} Ke8 {[%emt 0:00:01]} 53. Ra8+ {[%emt 0:00:00]} Ke7 {[%emt 0:00:01]} 1/2-1/2

[Event "FIDE Open World Rapid 2024"]
[Site "New York"]
[Date "2024.12.27"]
[Round "7.28"]
[White "Andersen, Mads"]
[Black "Escobar Forero, Alder"]
[Result "1-0"]
[ECO "B31"]
[WhiteElo "2592"]
[BlackElo "2420"]
[Annotator "ChessBase"]
[PlyCount "63"]
[EventDate "2024.12.14"]
[EventType "swiss"]
[EventCountry "USA"]
[SourceTitle "playchess.com"]
[Source "ChessBase"]
[SourceQuality "1"]
[TimeControl "900+10"]

1. e4 {[%emt 0:00:03]} c5 {[%emt 0:00:08]} 2. Nf3 {[%emt 0:00:04]} Nc6 {[%emt 0:00:03]} 3. Bb5 {[%emt 0:00:02]} g6 {[%emt 0:00:29]} 4. O-O {[%emt 0:00:09]} Bg7 {[%emt 0:00:03]} 5. Re1 {[%emt 0:00:01]} Nf6 {[%emt 0:00:28]} 6. c3 {[%emt 0:00:23]} O-O {[%emt 0:00:06]} 7. d4 {[%emt 0:00:04]} d5 {[%emt 0:00:13]} 8. e5 {[%emt 0:00:01]} Ne4 {[%emt 0:00:03]} 9. Be3 {[%emt 0:00:42]} Qb6 {[%emt 0:00:03]} 10. Bxc6 {[%emt 0:00:03]} bxc6 {[%emt 0:00:13]} 11. Qc1 {[%emt 0:00:23]} c4 {[%emt 0:02:38]} 12. Nbd2 {[%emt 0:01:46]} Nxd2 {[%emt 0:00:13]} 13. Nxd2 {[%emt 0:00:05]} Bf5 {[%emt 0:00:10]} 14. b3 {[%emt 0:00:46]} Bd3 {[%emt 0:01:44]} 15. Qa3 {[%emt 0:03:12]} Rfe8 {[%emt 0:00:44]} 16. Bg5 {[%emt 0:00:17]} f6 {[%emt 0:03:31]} 17. Bf4 {[%emt 0:02:52]} Bf8 {[%emt 0:03:05]} 18. e6 {[%emt 0:02:33]} g5 {[%emt 0:02:51]} 19. Bg3 {[%emt 0:00:05]} f5 {[%emt 0:00:53]} 20. h4 {[%emt 0:01:44]} g4 {[%emt 0:00:31]} 21. Bf4 {[%emt 0:00:25]} Bg7 {[%emt 0:00:05]} 22. bxc4 {[%emt 0:01:28]} dxc4 {[%emt 0:00:02]} 23. Nf1 {[%emt 0:00:30]} Bf6 {[%emt 0:00:22]} 24. h5 {[%emt 0:00:23]} c5 {[%emt 0:00:02]} 25. d5 {[%emt 0:00:22]} Rad8 {[%emt 0:00:19]} 26. Ne3 {[%emt 0:00:06]} Qb7 {[%emt 0:00:01]} 27. Rac1 {[%emt 0:00:28]} Rxd5 {[%emt 0:00:08]} 28. Nxd5 {[%emt 0:00:03]} Qxd5 {[%emt 0:00:02]} 29. Qxa7 {[%emt 0:00:10]} Ra8 {[%emt 0:00:11]} 30. Qc7 {[%emt 0:00:30]} Kg7 {[%emt 0:00:07]} 31. Be5 {[%emt 0:00:11]} Rxa2 {[%emt 0:00:04]} 32. Qxe7+ {[%emt 0:00:02]} 1-0

[Event "FIDE Open World Rapid 2024"]
[Site "New York"]
[Date "2024.12.27"]
[Round "7.29"]
[White "Erenburg, Sergey"]
[Black "Oro, Faustino"]
[Result "0-1"]
[ECO "B80"]
[WhiteElo "2510"]
[BlackElo "2433"]
[Annotator "ChessBase"]
[PlyCount "62"]
[EventDate "2024.12.14"]
[EventType "swiss"]
[EventCountry "USA"]
[SourceTitle "playchess.com"]
[Source "ChessBase"]
[SourceQuality "1"]
[TimeControl "900+10"]

1. e4 {[%emt 0:00:01]} c5 {[%emt 0:00:03]} 2. Nf3 {[%emt 0:00:02]} d6 {[%emt 0:00:01]} 3. d4 {[%emt 0:00:03]} cxd4 {[%emt 0:00:03]} 4. Nxd4 {[%emt 0:00:02]} Nf6 {[%emt 0:00:02]} 5. Nc3 {[%emt 0:00:02]} a6 {[%emt 0:00:00]} 6. Be3 {[%emt 0:00:02]} e6 {[%emt 0:00:20]} 7. f3 {[%emt 0:00:04]} h5 {[%emt 0:00:01]} 8. Qd2 {[%emt 0:00:48]} Be7 {[%emt 0:00:02]} 9. Be2 {[%emt 0:00:55]} b5 {[%emt 0:01:33]} 10. O-O {[%emt 0:01:56]} Bb7 {[%emt 0:00:06]} 11. a4 {[%emt 0:00:23]} b4 {[%emt 0:01:24]} 12. Na2 {[%emt 0:00:05]} a5 {[%emt 0:01:03]} 13. Bb5+ {[%emt 0:00:50]} Nfd7 {[%emt 0:01:19]} 14. c3 {[%emt 0:00:05]} bxc3 {[%emt 0:00:08]} 15. Nxc3 {[%emt 0:00:06]} O-O {[%emt 0:00:29]} 16. Rac1 {[%emt 0:00:52]} Nc5 {[%emt 0:01:03]} 17. Rfd1 {[%emt 0:00:15]} Nbd7 {[%emt 0:01:00]} 18. Qf2 {[%emt 0:01:50]} Rc8 {[%emt 0:00:21]} 19. Rc2 {[%emt 0:00:43]} Bh4 {[%emt 0:00:57]} 20. Qe2 {[%emt 0:00:13]} Bf6 {[%emt 0:00:19]} 21. Rcd2 {[%emt 0:00:54]} Qe7 {[%emt 0:00:08]} 22. Bxd7 {[%emt 0:03:32]} Nxd7 {[%emt 0:01:33]} 23. Ndb5 {[%emt 0:00:14]} d5 {[%emt 0:00:13]} 24. exd5 {[%emt 0:00:16]} Bxd5 {[%emt 0:00:12]} 25. Nxd5 {[%emt 0:00:29]} exd5 {[%emt 0:00:01]} 26. Rxd5 {[%emt 0:00:51]} Nb6 {[%emt 0:00:08]} 27. R5d2 {[%emt 0:01:35]} Nc4 {[%emt 0:00:44]} 28. Bd4 {[%emt 0:02:23]} Nxd2 {[%emt 0:00:10]} 29. Rxd2 {[%emt 0:00:09]} Bxd4+ {[%emt 0:00:09]} 30. Nxd4 {[%emt 0:00:01]} Rc1+ {[%emt 0:00:01]} 31. Kf2 {[%emt 0:00:03]} Qh4+ {[%emt 0:00:01]} 0-1

[Event "FIDE Open World Rapid 2024"]
[Site "New York"]
[Date "2024.12.27"]
[Round "7.29"]
[White "Lenderman, Aleksandr"]
[Black "Muradli, Mahammad"]
[Result "0-1"]
[ECO "D30"]
[WhiteElo "2480"]
[BlackElo "2588"]
[Annotator "ChessBase"]
[PlyCount "76"]
[EventDate "2024.12.14"]
[EventType "swiss"]
[EventCountry "USA"]
[SourceTitle "playchess.com"]
[Source "ChessBase"]
[SourceQuality "1"]
[TimeControl "900+10"]

1. d4 {[%emt 0:00:01]} Nf6 {[%emt 0:00:02]} 2. Nf3 {[%emt 0:00:02]} d5 {[%emt 0:00:02]} 3. c4 {[%emt 0:00:03]} e6 {[%emt 0:00:02]} 4. e3 {[%emt 0:00:01]} a6 {[%emt 0:00:36]} 5. Nbd2 {[%emt 0:00:09]} b6 {[%emt 0:00:36]} 6. cxd5 {[%emt 0:00:48]} exd5 {[%emt 0:00:12]} 7. b3 {[%emt 0:00:02]} Bd6 {[%emt 0:00:04]} 8. Bb2 {[%emt 0:00:02]} O-O {[%emt 0:00:41]} 9. Bd3 {[%emt 0:00:03]} Bb7 {[%emt 0:00:12]} 10. O-O {[%emt 0:00:24]} Ne4 {[%emt 0:00:45]} 11. Qc2 {[%emt 0:00:04]} Qe7 {[%emt 0:00:23]} 12. Rac1 {[%emt 0:01:04]} Nd7 {[%emt 0:00:57]} 13. Rfd1 {[%emt 0:00:04]} Rac8 {[%emt 0:00:40]} 14. Nf1 {[%emt 0:00:07]} g6 {[%emt 0:00:22]} 15. Qe2 {[%emt 0:00:11]} Rfe8 {[%emt 0:00:17]} 16. Ng3 {[%emt 0:00:27]} h5 {[%emt 0:00:13]} 17. Rc2 {[%emt 0:01:47]} h4 {[%emt 0:02:15]} 18. Nf1 {[%emt 0:00:01]} h3 {[%emt 0:01:54]} 19. gxh3 {[%emt 0:00:29]} Kg7 {[%emt 0:00:54]} 20. Ng3 {[%emt 0:00:10]} Rh8 {[%emt 0:02:44]} 21. h4 {[%emt 0:00:11]} Ndf6 {[%emt 0:00:01]} 22. Bxa6 {[%emt 0:01:41]} Bxa6 {[%emt 0:00:04]} 23. Qxa6 {[%emt 0:00:01]} Ra8 {[%emt 0:00:39]} 24. Qf1 {[%emt 0:00:29]} Rxa2 {[%emt 0:01:05]} 25. Qg2 {[%emt 0:00:11]} Ng4 {[%emt 0:00:50]} 26. Re1 {[%emt 0:05:29]} Kf8 {[%emt 0:00:48]} 27. Ree2 {[%emt 0:01:03]} Nexf2 {[%emt 0:01:37]} 28. Rxf2 {[%emt 0:01:17]} Nxe3 {[%emt 0:00:01]} 29. Rfe2 {[%emt 0:00:47]} Nxg2 {[%emt 0:00:25]} 30. Rxe7 {[%emt 0:00:01]} Bxe7 {[%emt 0:00:34]} 31. Kxg2 {[%emt 0:00:10]} Kg7 {[%emt 0:00:12]} 32. Rf2 {[%emt 0:01:42]} Bxh4 {[%emt 0:00:07]} 33. Ne5 {[%emt 0:00:09]} Bf6 {[%emt 0:00:11]} 34. Nc6 {[%emt 0:00:04]} Re8 {[%emt 0:00:12]} 35. Ne5 {[%emt 0:01:31]} Re6 {[%emt 0:00:11]} 36. h4 {[%emt 0:00:10]} Bxe5 {[%emt 0:00:10]} 37. dxe5 {[%emt 0:00:01]} c5 {[%emt 0:00:02]} 38. Ne2 {[%emt 0:00:13]} Rxb2 {[%emt 0:00:04]} 0-1

[Event "FIDE Open World Rapid 2024"]
[Site "New York"]
[Date "2024.12.27"]
[Round "7.30"]
[White "Dragnev, Valentin"]
[Black "Juksta, Karolis"]
[Result "1/2-1/2"]
[ECO "C42"]
[WhiteElo "2563"]
[BlackElo "2403"]
[Annotator "ChessBase"]
[PlyCount "143"]
[EventDate "2024.12.14"]
[EventType "swiss"]
[EventCountry "USA"]
[SourceTitle "playchess.com"]
[Source "ChessBase"]
[SourceQuality "1"]
[TimeControl "900+10"]

1. e4 {[%emt 0:00:02]} e5 {[%emt 0:00:04]} 2. Nf3 {[%emt 0:00:02]} Nf6 {[%emt 0:00:02]} 3. Nxe5 {[%emt 0:00:03]} d6 {[%emt 0:00:02]} 4. Nd3 {[%emt 0:00:22]} Nxe4 {[%emt 0:00:05]} 5. Qe2 {[%emt 0:00:05]} Qe7 {[%emt 0:00:05]} 6. Nf4 {[%emt 0:00:03]} Nf6 {[%emt 0:00:52]} 7. d4 {[%emt 0:00:14]} d5 {[%emt 0:02:08]} 8. h4 {[%emt 0:01:06]} Bf5 {[%emt 0:01:38]} 9. c3 {[%emt 0:00:08]} h5 {[%emt 0:02:11]} 10. f3 {[%emt 0:00:28]} Nbd7 {[%emt 0:00:57]} 11. Kf2 {[%emt 0:00:33]} O-O-O {[%emt 0:00:18]} 12. Qxe7 {[%emt 0:01:46]} Bxe7 {[%emt 0:00:01]} 13. Bd3 {[%emt 0:00:02]} Bxd3 {[%emt 0:00:34]} 14. Nxd3 {[%emt 0:00:02]} Rhe8 {[%emt 0:02:01]} 15. Nd2 {[%emt 0:00:22]} c5 {[%emt 0:00:40]} 16. Nf1 {[%emt 0:00:18]} c4 {[%emt 0:01:00]} 17. Nf4 {[%emt 0:00:15]} Bd6 {[%emt 0:00:18]} 18. Ng3 {[%emt 0:01:08]} g6 {[%emt 0:00:03]} 19. Nh3 {[%emt 0:00:33]} Kc7 {[%emt 0:02:46]} 20. Bg5 {[%emt 0:00:59]} Bxg3+ {[%emt 0:00:19]} 21. Kxg3 {[%emt 0:00:02]} Re2 {[%emt 0:00:05]} 22. Rab1 {[%emt 0:00:12]} Rde8 {[%emt 0:00:09]} 23. Nf4 {[%emt 0:00:04]} Rc2 {[%emt 0:00:30]} 24. Rhc1 {[%emt 0:00:08]} Rxc1 {[%emt 0:00:04]} 25. Rxc1 {[%emt 0:00:01]} b5 {[%emt 0:00:14]} 26. Kf2 {[%emt 0:00:22]} Kc6 {[%emt 0:00:14]} 27. Nh3 {[%emt 0:00:11]} Nh7 {[%emt 0:00:19]} 28. Bd2 {[%emt 0:00:20]} a5 {[%emt 0:00:02]} 29. Ng5 {[%emt 0:03:09]} Nxg5 {[%emt 0:00:02]} 30. Bxg5 {[%emt 0:00:02]} b4 {[%emt 0:01:23]} 31. g4 {[%emt 0:00:41]} bxc3 {[%emt 0:00:50]} 32. bxc3 {[%emt 0:00:21]} Nb6 {[%emt 0:00:07]} 33. Rc2 {[%emt 0:00:38]} Na4 {[%emt 0:00:10]} 34. Bc1 {[%emt 0:00:22]} Kd7 {[%emt 0:00:15]} 35. Bf4 {[%emt 0:01:06]} Re6 {[%emt 0:00:07]} 36. Bc1 {[%emt 0:00:40]} f6 {[%emt 0:00:16]} 37. Ba3 {[%emt 0:00:29]} hxg4 {[%emt 0:00:17]} 38. fxg4 {[%emt 0:00:03]} Re4 {[%emt 0:00:01]} 39. Kf3 {[%emt 0:00:11]} Ke6 {[%emt 0:00:03]} 40. Bc1 {[%emt 0:00:39]} f5 {[%emt 0:00:02]} 41. gxf5+ {[%emt 0:00:24]} Kxf5 {[%emt 0:00:00]} 42. Bg5 {[%emt 0:00:12]} Re8 {[%emt 0:00:28]} 43. Kg3 {[%emt 0:00:37]} Re1 {[%emt 0:00:12]} 44. Kf2 {[%emt 0:01:24]} Rd1 {[%emt 0:00:10]} 45. Bd8 {[%emt 0:00:54]} Rd3 {[%emt 0:00:21]} 46. Bxa5 {[%emt 0:00:02]} Rh3 {[%emt 0:00:03]} 47. Kg2 {[%emt 0:00:18]} Rxh4 {[%emt 0:00:01]} 48. Rf2+ {[%emt 0:00:32]} Rf4 {[%emt 0:00:04]} 49. Re2 {[%emt 0:00:02]} Re4 {[%emt 0:00:01]} 50. Rf2+ {[%emt 0:00:01]} Rf4 {[%emt 0:00:04]} 51. Re2 {[%emt 0:00:09]} Re4 {[%emt 0:00:10]} 52. Rf2+ {[%emt 0:00:03]} Kg4 {[%emt 0:00:20]} 53. Rf6 {[%emt 0:00:24]} g5 {[%emt 0:00:04]} 54. Rd6 {[%emt 0:00:06]} Re2+ {[%emt 0:00:37]} 55. Kf1 {[%emt 0:00:04]} Rxa2 {[%emt 0:00:05]} 56. Rxd5 {[%emt 0:00:06]} Rc2 {[%emt 0:00:23]} 57. Bd8 {[%emt 0:00:27]} Nxc3 {[%emt 0:00:03]} 58. Rxg5+ {[%emt 0:00:10]} Kf3 {[%emt 0:00:17]} 59. Ke1 {[%emt 0:00:37]} Ne4 {[%emt 0:00:09]} 60. Rf5+ {[%emt 0:00:14]} Ke3 {[%emt 0:00:06]} 61. Kd1 {[%emt 0:00:06]} Rd2+ {[%emt 0:00:13]} 62. Kc1 {[%emt 0:00:01]} c3 {[%emt 0:00:09]} 63. d5 {[%emt 0:00:15]} Kd3 {[%emt 0:00:06]} 64. Rf3+ {[%emt 0:00:13]} Ke2 {[%emt 0:00:16]} 65. Rh3 {[%emt 0:00:14]} Rxd5 {[%emt 0:00:11]} 66. Bf6 {[%emt 0:00:09]} Rd1+ {[%emt 0:00:11]} 67. Kc2 {[%emt 0:00:02]} Rd2+ {[%emt 0:00:01]} 68. Kc1 {[%emt 0:00:13]} Rd1+ {[%emt 0:00:15]} 69. Kc2 {[%emt 0:00:01]} Rd2+ {[%emt 0:00:01]} 70. Kc1 {[%emt 0:00:01]} Nxf6 {[%emt 0:00:02]} 71. Rxc3 {[%emt 0:00:03]} Ne4 {[%emt 0:00:07]} 72. Rc2 {[%emt 0:00:02]} 1/2-1/2